bitfinex-derivatives/quotes_ETHF0:USTF0_20250502
["timestamp","ask_amount","ask_price","bid_price","bid_amount"]
[1746204634306,2.7596,1854.1,1854.0,3.696]
[1746204634512,5.9674,1854.1,1854.0,3.696]
[1746204635118,1.07837,1853.8,1853.7,41.6339]
[1746204635318,4.38179,1854.0,1853.6,4.1028]
[1746204635517,1.07852,1853.6,1853.4,7.95238]
[1746204635722,1.6861,1853.7,1853.5,1.07854]
[1746204635921,0.845,1853.6,1853.5,1.07854]
[1746204636119,1.07855,1853.5,1853.4,4.28637]
[1746204636321,1.92352,1853.6,1853.5,1.07855]
[1746204636521,1.92349,1853.6,1853.5,1.07855]
[1746204636917,0.845,1853.6,1853.5,2.72315]
[1746204637118,1.92349,1853.6,1853.5,2.72315]
[1746204637321,0.845,1853.6,1853.5,6.41915]
[1746204637518,1.92349,1853.6,1853.5,6.41915]
[1746204638719,0.845,1853.6,1853.5,6.41915]
[1746204639521,1.92349,1853.6,1853.5,6.41915]
[1746204639714,1.92349,1853.6,1853.5,5.3406]
[1746204640225,0.845,1853.6,1853.5,6.41915]
[1746204640427,1.92349,1853.6,1853.5,6.41915]
[1746204641426,0.845,1853.6,1853.5,6.41915]
[1746204642127,1.92349,1853.6,1853.5,6.41915]
[1746204644228,0.845,1853.6,1853.5,6.41915]
[1746204644528,1.07843,1853.8,1853.7,1.07839]
[1746204644729,1.07843,1853.7,1853.6,2.73975]
[1746204647529,2.77933,1853.8,1853.7,1.07843]
[1746204648134,2.77933,1853.8,1853.7,4.77443]
[1746204649435,2.77933,1853.8,1853.7,3.696]
[1746204649634,2.77933,1853.8,1853.7,4.77443]
[1746204649935,2.77933,1853.8,1853.7,3.696]
[1746204651136,1.07843,1853.7,1853.6,1.07849]
[1746204651336,1.641,1853.7,1853.6,1.07849]
[1746204651744,2.71943,1853.7,1853.6,1.07849]
[1746204652442,0.8307,1854.0,1853.6,3.2078]
[1746204652634,0.8307,1854.0,1853.9,1.07832]
[1746204652635,3.54996,1854.0,1853.9,1.07832]
[1746204653038,1.07836,1853.9,1853.8,1.07833]
[1746204653242,2.65656,1853.9,1853.8,1.07833]
[1746204653432,1.07837,1853.8,1853.7,3.58668]
[1746204653633,2.65657,1853.8,1853.7,3.58668]
[1746204653939,1.07843,1853.7,1853.6,1.07844]
[1746204654132,1.5782,1853.7,1853.6,4.28624]
[1746204654639,1.5782,1853.7,1853.6,1.07844]
[1746204655033,1.5782,1853.7,1853.6,2.72564]
[1746204655233,1.5782,1853.7,1853.6,5.93344]
[1746204656448,2.65663,1853.7,1853.6,5.93344]
[1746204656738,1.07849,1853.6,1853.5,4.77455]
[1746204657040,3.67369,1853.6,1853.5,4.77455]
[1746204657243,1.07848,1853.7,1853.6,1.07849]
[1746204657534,1.07848,1853.7,1853.6,5.99929]
[1746204657740,1.7341,1853.8,1853.7,1.07843]
[1746204658035,1.7341,1853.8,1853.7,3.63003]
[1746204658341,2.81247,1853.8,1853.7,2.5516]
[1746204658839,2.81247,1853.8,1853.7,3.63003]
[1746204659232,2.81247,1853.8,1853.7,7.32603]
[1746204660239,2.81247,1853.8,1853.7,3.696]
[1746204661332,2.81247,1853.8,1853.7,4.77443]
[1746204661740,1.7341,1853.8,1853.7,4.77443]
[1746204661931,1.7341,1853.8,1853.7,5.57533]
[1746204662640,2.81247,1853.8,1853.7,3.696]
[1746204663140,3.23319078,1853.8,1853.7,3.696]
[1746204663941,0.42072078,1853.8,1853.7,4.77443]
[1746204664139,0.42072078,1853.8,1853.7,7.98223]
[1746204664641,1.49909078,1853.8,1853.7,7.98223]
[1746204665043,1.49909078,1853.8,1853.7,3.696]
[1746204665543,2.36589078,1853.8,1853.7,4.77443]
[1746204665742,2.36589078,1853.8,1853.7,3.696]
[1746204666940,4.08799078,1853.8,1853.7,3.696]
[1746204667140,1.49909078,1853.8,1853.7,4.77443]
[1746204667341,0.42072078,1853.8,1853.7,9.58693]
[1746204667741,1.49909078,1853.8,1853.7,9.58693]
[1746204667944,1.49909078,1853.8,1853.7,8.5085]
[1746204668143,1.49909078,1853.8,1853.7,6.9038]
[1746204668531,2.29829078,1853.8,1853.7,3.696]
[1746204669031,3.93939078,1853.8,1853.7,3.696]
[1746204670541,3.93939078,1853.8,1853.7,3.49111579]
[1746204670740,8.93939078,1853.8,1853.7,3.49111579]
[1746204670943,7.59339078,1853.8,1853.7,3.49111579]
[1746204671140,1.07849,1853.7,1853.6,1.07847]
[1746204671348,1.07849,1853.6,1853.5,2.71702]
[1746204671544,1.07843,1853.7,1853.6,1.07847]
[1746204671843,1.07843,1853.7,1853.6,2.4369]
[1746204672042,3.09602977,1853.7,1853.6,2.4369]
[1746204672438,3.09602977,1853.7,1853.6,0.7984]
[1746204673235,3.09602977,1853.7,1853.6,1.87689]
[1746204673439,0.42039977,1853.7,1853.6,1.87689]
[1746204673640,0.42039977,1853.7,1853.6,6.72319]
[1746204674344,1.49882977,1853.7,1853.6,6.72319]
[1746204674544,1.49882977,1853.7,1853.6,3.51539]
[1746204674745,0.42039977,1853.7,1853.6,3.51539]
[1746204674960,0.42039977,1853.7,1853.6,6.72319]
[1746204675246,1.49882977,1853.7,1853.6,6.72319]
[1746204676447,1.49882977,1853.7,1853.6,3.51539]
[1746204679147,1.49882977,1853.7,1853.6,2.4369]
[1746204679646,1.49882977,1853.7,1853.6,3.51539]
[1746204680349,1.49882977,1853.7,1853.6,2.4369]
[1746204680747,2.36252977,1853.7,1853.6,0.7984]
[1746204680947,1.07849,1853.6,1853.5,4.77452]
[1746204681147,3.58999,1853.6,1853.5,4.77452]
[1746204681349,4.01038977,1853.6,1853.5,3.696]
[1746204681750,4.01038977,1853.6,1853.5,4.77455]
[1746204682954,4.01038977,1853.6,1853.5,6.38635]
[1746204684054,2.93189977,1853.6,1853.5,6.38635]
[1746204684244,0.42039977,1853.6,1853.5,6.38635]
[1746204684852,1.49888977,1853.6,1853.5,6.38635]
[1746204685750,1.49888977,1853.6,1853.5,5.3078]
[1746204685949,3.17098977,1853.6,1853.5,3.696]
[1746204686343,1.07855,1853.5,1853.4,4.0528]
[1746204686542,3.15944977,1853.5,1853.4,0.845]
[1746204687147,3.15944977,1853.5,1853.4,4.541]
[1746204689255,3.15944977,1853.5,1853.4,3.696]
[1746204694463,6.36724977,1853.5,1853.4,3.696]
[1746204695155,1.07867,1853.3,1853.2,0.8251]
[1746204695556,1.49906977,1853.3,1853.2,0.8251]
[1746204695752,1.07872,1853.2,1853.1,1.7048]
[1746204695957,1.07878,1853.1,1853.0,0.8585]
[1746204696163,1.07878,1853.1,1853.0,6.146]
[1746204696364,3.10597977,1853.1,1853.0,6.146]
[1746204696863,3.10597977,1853.1,1853.0,4.5545]
[1746204697261,3.10597977,1853.1,1853.0,5.63334]
[1746204697562,3.10597977,1853.1,1853.0,7.22484]
[1746204697957,1.49917977,1853.1,1853.0,7.22484]
[1746204698861,0.42039977,1853.1,1853.0,7.22484]
[1746204699466,1.49917977,1853.1,1853.0,7.22484]
[1746204700066,0.42039977,1853.1,1853.0,7.22484]
[1746204700568,1.49917977,1853.1,1853.0,7.22484]
[1746204701767,1.49917977,1853.1,1853.0,6.146]
[1746204702266,3.09897977,1853.1,1853.0,6.146]
[1746204702960,3.09897977,1853.1,1853.0,4.5545]
[1746204703968,3.09897977,1853.1,1853.0,3.696]
[1746204704972,8.09897977,1853.1,1853.0,3.696]
[1746204705162,1.07884,1853.0,1852.9,3.2078]
[1746204705464,2.78534,1853.0,1852.9,3.2078]
[1746204705666,3.20573977,1853.0,1852.9,3.2078]
[1746204706269,3.20573977,1853.0,1852.9,6.9038]
[1746204706965,0.42039977,1853.0,1852.9,7.9827]
[1746204707267,0.42039977,1853.0,1852.9,11.3447]
[1746204708468,1.07867,1853.3,1853.2,1.07869]
[1746204709273,1.07867,1853.3,1853.2,7.34769]
[1746204709474,1.07867,1853.3,1853.2,4.5309]
[1746204709772,2.78337,1853.3,1853.2,3.696]
[1746204710771,2.78337,1853.3,1853.2,4.77472]
[1746204710973,2.78337,1853.3,1853.2,3.696]
[1746204711875,2.78337,1853.3,1853.2,4.77472]
[1746204712469,8.31601457,1853.5,1853.2,6.9038]
[1746204712674,4.66800457,1853.5,1853.4,1.07861]
[1746204713063,4.66800457,1853.5,1853.4,6.42841]
[1746204713374,4.66800457,1853.5,1853.4,5.3498]
[1746204713575,4.66800457,1853.5,1853.4,6.42841]
[1746204714477,3.58945457,1853.5,1853.4,6.42841]
[1746204715174,4.66800457,1853.5,1853.4,6.42841]
[1746204715567,3.58945457,1853.5,1853.4,14.63621]
[1746204715767,1.07855,1853.5,1853.4,3.696]
[1746204716069,3.56415,1853.5,1853.4,3.696]
[1746204716372,1.07861,1853.4,1853.3,0.8777]
[1746204716574,2.71531,1853.4,1853.3,0.8777]
[1746204716769,2.71531,1853.4,1853.2,4.0899]
[1746204716770,1.07867,1853.3,1853.2,4.0899]
[1746204716970,2.74267,1853.3,1853.2,3.2078]
[1746204717171,2.74267,1853.3,1853.2,6.9038]
[1746204718162,1.07872,1853.2,1853.1,3.52638]
[1746204718362,3.55652,1853.2,1853.1,3.52638]
[1746204718974,3.55652,1853.2,1853.1,2.4476]
[1746204719273,3.55652,1853.2,1853.1,3.52638]
[1746204719979,3.55652,1853.2,1853.1,2.4476]
[1746204720574,3.55652,1853.2,1853.1,3.52638]
[1746204720767,3.99188471,1853.2,1853.1,3.52638]
[1746204721174,0.43536471,1853.2,1853.1,3.52638]
[1746204721370,0.54328614,1853.2,1853.1,6.73418]
[1746204722376,0.54328614,1853.2,1853.1,15.38218]
[1746204723278,0.54328614,1853.2,1853.1,11.73418]
[1746204723578,0.54328614,1853.2,1853.1,10.38218]
[1746204731086,1.62200614,1853.2,1853.1,6.73418]
[1746204731478,0.54328614,1853.2,1853.1,6.73418]
[1746204735983,1.62200614,1853.2,1853.1,6.73418]
[1746204736284,0.54328614,1853.2,1853.1,6.73418]
[1746204737283,1.62200614,1853.2,1853.1,6.73418]
[1746204737487,0.54328614,1853.2,1853.1,6.73418]
[1746204738888,1.62200614,1853.2,1853.1,6.73418]
[1746204739182,1.62200614,1853.2,1853.1,4.28658]
[1746204739491,3.29760614,1853.2,1853.1,4.28658]
[1746204739787,3.29760614,1853.2,1853.1,1.07878]
[1746204742690,3.18968471,1853.2,1853.1,1.07878]
[1746204744389,1.07878,1853.1,1853.0,3.696]
[1746204744592,2.73768,1853.1,1853.0,4.77484]
[1746204744789,3.17304471,1853.1,1853.0,3.696]
[1746204744989,3.17304471,1853.1,1853.0,4.77484]
[1746204745690,3.17304471,1853.1,1853.0,3.696]
[1746204745891,3.17304471,1853.1,1853.0,4.77484]
[1746204750290,2.09426471,1853.1,1853.0,4.77484]
[1746204750489,3.17304471,1853.1,1853.0,4.77484]
[1746204750888,3.17304471,1853.1,1853.0,6.46504]
[1746204754596,0.43536471,1853.1,1853.0,6.46504]
[1746204757490,0.4305879,1853.1,1853.0,6.46504]
[1746204757997,6.26052457,1853.5,1853.4,1.07861]
[1746204758194,6.26052457,1853.5,1853.4,4.77461]
[1746204758591,6.26052457,1853.5,1853.4,6.47321]
[1746204759399,2.67107,1853.5,1853.4,6.47321]
[1746204759791,2.67107,1853.5,1853.4,3.696]
[1746204759991,2.67107,1853.5,1853.4,4.77461]
[1746204766404,2.77897396,1853.5,1853.4,3.696]
[1746204770008,3.21144778,1853.5,1853.4,3.696]
[1746204770703,8.21144778,1853.5,1853.4,3.696]
[1746204771207,1.07872,1853.2,1853.1,4.28658]
[1746204771608,1.51119382,1853.2,1853.1,4.28658]
[1746204772105,3.22089382,1853.2,1853.1,4.28658]
[1746204772302,3.22089382,1853.2,1853.1,3.2078]
[1746204772507,3.22089382,1853.2,1853.1,4.28658]
[1746204772804,3.22089382,1853.2,1853.1,3.2078]
[1746204773812,3.22089382,1853.2,1853.1,4.28658]
[1746204774002,3.22089382,1853.2,1853.1,3.2078]
[1746204774310,3.22089382,1853.2,1853.1,4.28658]
[1746204774708,3.32881525,1853.2,1853.1,4.28658]
[1746204774906,3.32881525,1853.2,1853.1,5.97948]
[1746204775608,3.32881525,1853.2,1853.1,4.9007]
[1746204776108,3.32881525,1853.2,1853.1,5.97948]
[1746204777208,3.32881525,1853.2,1853.1,3.2078]
[1746204777507,3.32881525,1853.2,1853.1,4.28658]
[1746204778611,3.32881525,1853.2,1853.1,3.2078]
[1746204779102,3.32881525,1853.2,1853.1,4.28658]
[1746204779510,3.32881525,1853.2,1853.1,3.2078]
[1746204780213,3.32881525,1853.2,1853.1,4.28658]
[1746204781008,3.32881525,1853.2,1853.1,5.99658]
[1746204782112,0.54039525,1853.2,1853.1,5.99658]
[1746204782511,0.54134116,1853.2,1853.1,5.99658]
[1746204786711,1.07878,1853.1,1853.0,3.696]
[1746204786914,4.10549973,1853.1,1853.0,4.77484]
[1746204787415,4.10549973,1853.1,1853.0,6.41744]
[1746204788216,4.10549973,1853.1,1853.0,5.3386]
[1746204788415,4.10549973,1853.1,1853.0,6.41744]
[1746204788606,4.10549973,1853.1,1853.0,4.77484]
[1746204789416,4.10549973,1853.1,1853.0,3.696]
[1746204789617,1.51219973,1853.1,1853.0,4.77484]
[1746204789816,1.51219973,1853.1,1853.0,6.42024]
[1746204790819,1.62012698,1853.1,1853.0,6.42024]
[1746204791217,0.54134698,1853.1,1853.0,6.42024]
[1746204793617,1.62012698,1853.1,1853.0,6.42024]
[1746204794913,0.54134698,1853.1,1853.0,6.42024]
[1746204795117,1.62012698,1853.1,1853.0,6.42024]
[1746204795419,0.54134698,1853.1,1853.0,6.42024]
[1746204796417,1.62012698,1853.1,1853.0,6.42024]
[1746204797118,0.54134698,1853.1,1853.0,6.42024]
[1746204800915,0.54134698,1853.1,1853.0,11.42024]
[1746204801220,3.58945457,1853.4,1853.0,11.42024]
[1746204801221,3.58945457,1853.4,1853.3,1.07867]
[1746204801422,3.58945457,1853.4,1853.3,4.28647]
[1746204801918,3.58945457,1853.4,1853.3,6.78407]
[1746204802117,3.58945457,1853.4,1853.3,10.48007]
[1746204803816,6.89527,1853.7,1853.6,1.07849]
[1746204807018,2.609,1853.7,1853.6,1.07849]
[1746204807225,3.68743,1853.7,1853.6,2.77779]
[1746204808628,3.68743,1853.7,1853.6,1.07849]
[1746204809019,1.07849,1853.6,1853.5,7.98231]
[1746204809223,3.58349,1853.6,1853.5,7.98231]
[1746204810526,2.505,1853.6,1853.5,7.98231]
[1746204811026,1.6432,1853.6,1853.5,9.72821]
[1746204812431,2.72169,1853.6,1853.5,9.72821]
[1746204813334,3.15006245,1853.6,1853.5,9.72821]
[1746204813732,3.15006245,1853.6,1853.5,6.52041]
[1746204814334,2.07157245,1853.6,1853.5,6.52041]
[1746204815329,3.15006245,1853.6,1853.5,6.52041]
[1746204815637,2.07155977,1853.6,1853.5,6.52041]
[1746204816032,3.15004977,1853.6,1853.5,4.77451]
[1746204816334,3.15004977,1853.6,1853.5,3.696]
[1746204816539,3.15004977,1853.6,1853.5,4.77455]
[1746204816726,3.15004977,1853.6,1853.5,3.696]
[1746204817131,3.15004977,1853.6,1853.5,4.77455]
[1746204819642,2.07155977,1853.6,1853.5,4.77455]
[1746204819935,2.07155977,1853.6,1853.5,7.33105]
[1746204821037,3.15004977,1853.6,1853.5,7.33105]
[1746204822440,2.07155977,1853.6,1853.5,7.33105]
[1746204822741,3.15004977,1853.6,1853.5,7.33105]
[1746204823339,2.07155977,1853.6,1853.5,7.33105]
[1746204824039,3.15004977,1853.6,1853.5,7.33105]
[1746204824235,2.07155977,1853.6,1853.5,7.33105]
[1746204825937,3.15004977,1853.6,1853.5,7.33105]
[1746204829836,3.15004977,1853.6,1853.5,4.77455]
[1746204830747,3.15004977,1853.6,1853.5,3.696]
[1746204831238,3.15004977,1853.6,1853.5,4.77455]
[1746204832444,3.15004977,1853.6,1853.5,3.696]
[1746204833254,8.15004977,1853.6,1853.5,3.696]
[1746204834052,3.15004977,1853.6,1853.5,3.696]
[1746204834351,3.15004977,1853.6,1853.5,4.77455]
[1746204835350,3.15004977,1853.6,1853.5,3.696]
[1746204837253,1.07861,1853.4,1853.3,1.07863]
[1746204837953,4.06746977,1853.4,1853.3,1.07863]
[1746204838447,4.06746977,1853.4,1853.3,4.77463]
[1746204840452,4.06746977,1853.4,1853.3,3.696]
[1746204840641,4.06746977,1853.4,1853.3,4.77467]
[1746204844153,4.06746977,1853.4,1853.3,3.696]
[1746204846155,4.06746977,1853.4,1853.3,4.77467]
[1746204846856,4.06746977,1853.4,1853.3,3.696]
[1746204848045,1.50696977,1853.4,1853.3,4.77467]
[1746204848250,1.50696977,1853.4,1853.3,6.52097]
[1746204849556,3.10096977,1853.4,1853.3,6.52097]
[1746204850658,0.42835977,1853.4,1853.3,6.52097]
[1746204851058,0.42835977,1853.4,1853.3,9.72877]
[1746204852463,1.50696977,1853.4,1853.3,9.72877]
[1746204852759,0.42835977,1853.4,1853.3,9.72877]
[1746204854155,0.42835977,1853.4,1853.3,14.72877]
[1746204856056,0.42835977,1853.4,1853.3,9.72877]
[1746204856252,1.50696977,1853.4,1853.3,5.4423]
[1746204856460,3.19506977,1853.4,1853.3,3.696]
[1746204857163,3.19506977,1853.4,1853.3,4.77467]
[1746204860261,3.19506977,1853.4,1853.3,3.696]
[1746204861367,1.07867,1853.3,1853.2,1.07869]
[1746204861558,3.66907,1853.3,1853.2,1.07869]
[1746204861863,4.09742977,1853.3,1853.2,1.07869]
[1746204862166,4.09742977,1853.3,1853.2,4.77469]
[1746204862461,4.09742977,1853.3,1853.2,3.696]
[1746204862867,4.09742977,1853.3,1853.2,4.77472]
[1746204863261,4.09742977,1853.3,1853.2,1.07872]
[1746204864167,1.07872,1853.2,1853.1,3.64483]
[1746204864363,2.75622,1853.2,1853.1,3.64483]
[1746204865062,3.18457977,1853.2,1853.1,3.64483]
[1746204867765,1.07878,1853.1,1853.0,4.7748]
[1746204867967,3.14533977,1853.1,1853.0,4.7748]
[1746204868466,6.35313977,1853.1,1853.0,3.696]
[1746204868665,11.35313977,1853.1,1853.0,2.84500535]
[1746204869167,1.0789,1852.9,1852.8,1.07895]
[1746204869373,1.07896,1852.8,1852.7,9.64069985]
[1746204869571,2.81276,1852.8,1852.7,10.71970985]
[1746204869867,3.24111977,1852.8,1852.7,9.64069985]
[1746204870063,3.24111977,1852.8,1852.7,10.71970985]
[1746204870263,3.24111977,1852.8,1852.7,14.41570985]
[1746204870668,3.24111977,1852.8,1852.7,13.33669985]
[1746204870872,3.24111977,1852.8,1852.7,10.74899985]
[1746204871263,3.24111977,1852.8,1852.7,7.05299985]
[1746204872164,3.24111977,1852.8,1852.7,10.74899985]
[1746204872469,3.24111977,1852.8,1852.7,3.696]
[1746204878382,3.24111977,1852.8,1852.7,4.77501]
[1746204878577,3.24111977,1852.8,1852.7,3.696]
[1746204879974,3.24111977,1852.8,1852.6,1.07906]
[1746204879975,1.0791,1852.6,1852.5,1.07906]
[1746204880172,1.0791,1852.6,1852.5,4.77506]
[1746204880566,2.05635977,1852.6,1852.5,4.77506]
[1746204881173,3.13542977,1852.6,1852.5,4.77506]
[1746204881372,6.34322977,1852.6,1852.5,3.696]
[1746204881574,7.19812977,1852.6,1852.5,3.696]
[1746204884271,7.30608615,1852.6,1852.5,3.696]
[1746204886367,10.91208615,1852.6,1852.5,3.696]
[1746204887178,1.07919,1852.4,1852.3,0.8615]
[1746204887369,4.71534977,1852.4,1852.3,0.8615]
[1746204887765,5.61144977,1852.4,1852.3,0.8615]
[1746204887968,5.61144977,1852.4,1852.3,1.94075]
[1746204888174,5.61144977,1852.4,1852.3,4.5575]
[1746204888778,5.61144977,1852.4,1852.3,5.63675]
[1746204889476,4.71534977,1852.4,1852.3,5.63675]
[1746204889678,3.63615977,1852.4,1852.3,5.63675]
[1746204890073,4.98524977,1852.4,1852.3,5.63675]
[1746204891074,3.90605977,1852.4,1852.3,5.63675]
[1746204891283,4.98524977,1852.4,1852.3,5.63675]
[1746204891479,3.90605977,1852.4,1852.3,5.63675]
[1746204891681,4.98524977,1852.4,1852.3,5.63675]
[1746204891882,3.90605977,1852.4,1852.3,5.63675]
[1746204892276,0.69825977,1852.4,1852.3,5.63675]
[1746204894182,1.77744977,1852.4,1852.3,5.63675]
[1746204894582,1.88541781,1852.4,1852.3,5.63675]
[1746204894979,0.80622781,1852.4,1852.3,5.63675]
[1746204895783,1.88541781,1852.4,1852.3,5.63675]
[1746204895976,0.80622781,1852.4,1852.3,5.63675]
[1746204896173,1.88541781,1852.4,1852.3,5.63675]
[1746204897982,1.88541781,1852.4,1852.3,4.5575]
[1746204898280,3.66331781,1852.4,1852.3,4.5575]
[1746204898686,3.66331781,1852.4,1852.3,5.63675]
[1746204898883,3.66331781,1852.4,1852.3,4.5575]
[1746204899390,3.66331781,1852.4,1852.3,3.696]
[1746204899581,6.87111781,1852.4,1852.3,3.696]
[1746204903786,11.87111781,1852.4,1852.3,3.696]
[1746204904187,1.07942,1852.0,1851.9,1.07945]
[1746204904379,1.50777977,1852.0,1851.9,1.07945]
[1746204904779,0.42835977,1852.0,1851.9,2.66665]
[1746204905178,1.50777977,1852.0,1851.9,6.36265]
[1746204905374,2.04655977,1852.0,1851.9,6.36265]
[1746204905577,0.42835977,1852.0,1851.9,6.36265]
[1746204906087,1.50777977,1852.0,1851.9,6.36265]
[1746204906477,0.42835977,1852.0,1851.9,6.36265]
[1746204906987,1.50777977,1852.0,1851.9,6.36265]
[1746204907790,1.61577113,1852.0,1851.9,6.36265]
[1746204908483,0.53635113,1852.0,1851.9,6.36265]
[1746204908688,0.53635113,1852.0,1851.9,9.57045]
[1746204908890,1.07941,1852.1,1851.9,9.57045]
[1746204908891,1.34911,1852.4,1852.3,1.07925]
[1746204909083,1.45707804,1852.4,1852.3,1.07925]
[1746204909282,1.45707804,1852.4,1852.3,4.77525]
[1746204909581,0.37786804,1852.4,1852.3,12.98305]
[1746204909884,3.58945457,1852.7,1852.6,1.07907]
[1746204910383,3.58945457,1852.7,1852.6,6.07907]
[1746204910588,3.58945457,1852.7,1852.6,9.40727]
[1746204911486,3.58945457,1852.7,1852.6,50.20727]
[1746204912585,7.42265328,1852.9,1852.8,1.07896]
[1746204912795,4.8836,1853.1,1853.0,1.07884]
[1746204913188,4.8836,1853.1,1853.0,4.77484]
[1746204913389,4.8836,1853.1,1853.0,6.48074]
[1746204913694,5.96238,1853.1,1853.0,6.48074]
[1746204915289,5.96238,1853.1,1853.0,5.4019]
[1746204915494,5.96238,1853.1,1853.0,4.523]
[1746204915689,6.07030725,1853.1,1853.0,3.696]
[1746204916697,6.07030725,1853.1,1853.0,4.77484]
[1746204917096,6.07030725,1853.1,1853.0,3.696]
[1746204918692,6.07030725,1853.1,1853.0,4.77484]
[1746204919296,6.07030725,1853.1,1853.0,5.68144]
[1746204919704,6.07030725,1853.1,1853.0,4.6026]
[1746204919901,6.07030725,1853.1,1853.0,3.696]
[1746204921007,6.49194766,1853.1,1853.0,3.696]
[1746204926811,10.08994766,1853.1,1853.0,1.46007083]
[1746204927006,15.08994766,1853.1,1853.0,0.09951083]
[1746204927206,1.07907,1852.6,1852.5,0.903]
[1746204927402,1.50071041,1852.6,1852.5,0.903]
[1746204927606,1.50071041,1852.6,1852.5,1.98213]
[1746204927807,3.22588446,1852.6,1852.5,1.98213]
[1746204928006,3.22588446,1852.6,1852.5,0.903]
[1746204928207,4.09578446,1852.6,1852.5,4.599]
[1746204928415,4.0959363,1852.6,1852.5,4.599]
[1746204928917,4.0959363,1852.6,1852.5,3.696]
[1746204929914,4.20389196,1852.6,1852.5,3.696]
[1746204933711,9.20389196,1852.6,1852.5,3.696]
[1746204934208,1.07936,1852.1,1852.0,42.7441]
[1746204934404,1.50174431,1852.1,1852.0,1.9441]
[1746204934816,1.50196639,1852.1,1852.0,1.9441]
[1746204935119,1.50196639,1852.1,1852.0,4.5607]
[1746204935417,6.43376639,1852.1,1852.0,3.696]
[1746204936517,6.43376639,1852.1,1852.0,4.77542]
[1746204937720,5.35440639,1852.1,1852.0,4.77542]
[1746204937909,0.42260639,1852.1,1852.0,15.12062]
[1746204938312,0.2699,1852.2,1852.1,1.07936]
[1746204938521,0.2699,1852.2,1852.1,3.65816]
[1746204938817,1.18702638,1852.6,1852.5,1.07913]
[1746204939019,0.53090723,1852.6,1852.5,1.07913]
[1746204939220,0.53090723,1852.6,1852.5,4.77513]
[1746204939418,1.60997723,1852.6,1852.5,7.28763]
[1746204939921,1.60997723,1852.6,1852.5,4.77513]
[1746204940116,3.25357723,1852.6,1852.5,4.77513]
[1746204941019,3.25357723,1852.6,1852.5,3.696]
[1746204941226,4.15207723,1852.6,1852.5,3.696]
[1746204941618,4.15207723,1852.6,1852.5,4.77513]
[1746204942818,0.53090723,1852.6,1852.5,5.67403]
[1746204943021,0.53090723,1852.6,1852.5,6.54483]
[1746204943425,0.53090723,1852.6,1852.5,8.17343]
[1746204943827,0.53090723,1852.6,1852.5,13.17343]
[1746204947330,0.53090723,1852.6,1852.5,8.17343]
[1746204949235,0.53090723,1852.6,1852.5,13.17343]
[1746204949933,0.53090723,1852.6,1852.5,8.17343]
[1746204963038,1.60997723,1852.6,1852.5,3.696]
[1746204963241,9.81777723,1852.6,1852.5,3.696]
[1746204963438,9.81777723,1852.6,1852.5,4.77513]
[1746204963830,11.48287723,1852.6,1852.5,3.696]
[1746204964437,6.48287723,1852.6,1852.5,4.77513]
[1746204964648,6.48287723,1852.6,1852.5,3.696]
[1746204965840,11.48287723,1852.6,1852.5,3.696]
[1746204971645,15.07487723,1852.6,1852.5,3.696]
[1746204972242,1.07931,1852.2,1852.1,1.07932]
[1746204972546,1.50226085,1852.2,1852.1,1.07932]
[1746204973139,3.11516085,1852.2,1852.1,1.07932]
[1746204973345,2.03585085,1852.2,1852.1,1.07932]
[1746204973547,2.03585085,1852.2,1852.1,1.94092]
[1746204974240,2.03585085,1852.2,1852.1,1.07932]
[1746204974440,3.11516085,1852.2,1852.1,1.07932]
[1746204975749,1.07936,1852.1,1852.0,3.696]
[1746204975951,2.66956,1852.1,1852.0,4.77542]
[1746204976148,3.20049637,1852.1,1852.0,3.696]
[1746204977150,3.20049637,1852.1,1852.0,1.0686]
[1746204980552,3.20049637,1852.1,1852.0,2.14802]
[1746204981448,3.20049637,1852.1,1852.0,1.0686]
[1746204987255,1.07948,1851.9,1851.8,6.3737]
[1746204987455,1.07948,1851.9,1851.8,5.2942]
[1746204987647,1.50243085,1851.9,1851.8,5.2942]
[1746204987848,4.01133085,1851.9,1851.8,5.2942]
[1746204989649,4.11932804,1851.9,1851.8,5.2942]
[1746204993757,1.61042804,1851.9,1851.8,6.37374]
[1746204993961,1.61042804,1851.9,1851.8,5.2942]
[1746204994959,2.43892804,1851.9,1851.8,5.2942]
[1746204995258,4.02742804,1851.9,1851.8,5.2942]
[1746204996353,4.02742804,1851.9,1851.8,3.696]
[1746204997363,2.94794804,1851.9,1851.8,5.3573]
[1746204997659,4.02742804,1851.9,1851.8,5.3573]
[1746204999164,4.02742804,1851.9,1851.8,6.43684]
[1746204999456,4.02742804,1851.9,1851.8,5.3573]
[1746205000058,4.02742804,1851.9,1851.8,6.43684]
[1746205001166,2.43892804,1851.9,1851.8,6.43684]
[1746205001360,0.53094804,1851.9,1851.8,6.43684]
[1746205001660,0.53094804,1851.9,1851.8,11.43684]
[1746205002862,0.80084804,1851.9,1851.8,11.43684]
[1746205004161,8.04e-06,1851.9,1851.8,11.43684]
[1746205004364,3.2078,1852.2,1852.1,1.07936]
[1746205004965,3.2078,1852.2,1852.1,2.73266]
[1746205006467,4.28711,1852.2,1852.1,2.73266]
[1746205006674,3.2078,1852.2,1852.1,2.73266]
[1746205006872,4.28711,1852.2,1852.1,2.73266]
[1746205007074,1.07936,1852.1,1852.0,4.77538]
[1746205007275,5.90205,1852.2,1852.1,1.07936]
[1746205007474,5.90205,1852.2,1852.1,2.67986]
[1746205008277,4.8227,1852.2,1852.1,2.67986]
[1746205010366,5.90201,1852.2,1852.1,1.07936]
[1746205011672,4.8227,1852.2,1852.1,1.07936]
[1746205012073,5.90201,1852.2,1852.1,1.07936]
[1746205012472,4.8227,1852.2,1852.1,1.07936]
[1746205012766,5.90201,1852.2,1852.1,1.07936]
[1746205012971,4.8227,1852.2,1852.1,1.07936]
[1746205013371,4.8227,1852.2,1852.0,5.2817]
[1746205013372,1.07936,1852.1,1852.0,3.696]